bitfinex-derivatives/quotes_SOLF0:USTF0_20250114
["timestamp","ask_amount","ask_price","bid_price","bid_amount"]
[1736836065354,7.9675738,186.24,186.18,7.9675738]
[1736836065558,13.5075738,186.28,186.22,7.9675738]
[1736836065758,1.5343,186.29,186.24,7.9675738]
[1736836066456,2.6859,186.26,186.24,7.9675738]
[1736836066660,7.9675738,186.28,186.24,7.9675738]
[1736836066863,7.9675738,186.26,186.22,7.9675738]
[1736836067156,2.6862,186.24,186.2,10.6541738]
[1736836071460,7.9675738,186.22,186.07,29.78758598]
[1736836071654,7.9675738,186.18,186.08,4.8573]
[1736836071961,7.9675738,186.14,186.08,12.8248738]
[1736836073156,2.6877,186.14,186.09,2.6883]
[1736836075061,7.9675738,186.13,186.09,2.6883]
[1736836075869,7.9675738,186.13,186.08,7.9675738]
[1736836076069,7.9675738,186.13,186.1,2.6881]
[1736836077863,2.6874,186.15,186.1,10.6556738]
[1736836078068,2.687,186.19,186.14,7.9675738]
[1736836078263,2.687,186.19,186.16,7.9675738]
[1736836079765,2.687,186.19,186.14,10.6549738]
[1736836080470,10.6542738,186.2,186.14,10.6549738]
[1736836080769,10.6542738,186.2,186.14,7.9675738]
[1736836080964,2.6867,186.2,186.16,7.9675738]
[1736836081171,1.5695,186.25,186.18,7.9675738]
[1736836081371,7.9675738,186.25,186.2,10.6542738]
[1736836082166,7.9675738,186.25,186.21,2.6866]
[1736836083168,7.9675738,186.25,186.2,10.6542738]
[1736836083873,10.6536738,186.25,186.2,10.6542738]
[1736836091079,2.6861,186.24,186.2,10.6542738]
[1736836091378,2.6861,186.24,186.2,7.9675738]
[1736836094684,2.6861,186.24,186.2,10.6542738]
[1736836095083,2.6861,186.24,186.2,2.6867]
[1736836095283,2.6861,186.24,186.2,10.6542738]
[1736836099784,7.9675738,186.25,186.2,7.9675738]
[1736836099984,7.9675738,186.25,186.21,2.6865]
[1736836100178,2.6858,186.26,186.22,7.9675738]
[1736836101579,2.686,186.25,186.22,7.9675738]
[1736836105894,148.70019746,186.38,186.24,7.9675738]
[1736836105895,7.9675738,186.3,186.24,7.9675738]
[1736836106597,2.6855,186.29,186.24,10.6536738]
[1736836106799,7.9675738,186.28,186.24,10.6536738]
[1736836108093,10.6531738,186.28,186.24,10.6536738]
[1736836112219,2.6854,186.29,186.25,2.686]
[1736836112517,10.6529738,186.29,186.25,2.686]
[1736836114419,2.6856,186.28,186.25,2.686]
[1736836115615,153.63969746,186.37,186.26,7.9675738]
[1736836115812,7.9675738,186.33,186.28,7.9675738]
[1736836117100,2.6851,186.32,186.28,10.6530738]
[1736836117302,7.9675738,186.33,186.28,10.6530738]
[1736836117605,10.6525738,186.33,186.28,10.6530738]
[1736836117901,7.9675738,186.33,186.28,10.6530738]
[1736836119102,2.685,186.32,186.28,10.6530738]
[1736836119995,2.685,186.32,186.28,2.6855]
[1736836120302,2.685,186.32,186.16,5.5]
[1736836120303,2.6853,186.3,186.16,5.5]
[1736836120509,2.6853,186.3,186.25,7.9675738]
[1736836122104,2.6853,186.3,186.25,10.6534738]
[1736836123706,2.6853,186.3,186.26,2.6858]
[1736836130419,2.6855,186.29,186.2,36.65338677]
[1736836130723,2.6855,186.29,186.25,7.9675738]
[1736836132220,7.9675738,186.31,186.26,2.6858]
[1736836132524,2.6853,186.3,186.26,2.6858]
[1736836136533,2.6857,186.28,186.25,7.9675738]
[1736836136734,7.9675738,186.29,186.23,10.6537738]
[1736836137032,7.9675738,186.29,186.23,7.9675738]
[1736836137223,2.6858,186.27,186.23,7.9675738]
[1736836137927,7.9675738,186.29,186.23,7.9675738]
[1736836138126,2.6857,186.28,186.23,10.6537738]
[1736836138429,7.9675738,186.31,186.25,7.9675738]
[1736836140232,2.6851,186.31,186.27,2.6857]
[1736836140629,10.6526738,186.31,186.27,10.6532738]
[1736836142035,7.9675738,186.31,186.27,7.9675738]
[1736836142236,4.9395,186.37,186.29,7.9675738]
[1736836142432,7.9675738,186.35,186.29,7.9675738]
[1736836144128,7.9675738,186.35,186.18,5.48]
[1736836144429,7.9675738,186.35,186.29,7.9675738]
[1736836144630,2.6848,186.33,186.29,7.9675738]
[1736836145434,10.6523738,186.33,186.29,7.9675738]
[1736836146436,10.6523738,186.33,186.28,2.6854]
[1736836147343,2.6848,186.33,186.28,2.6854]
[1736836147539,10.6523738,186.33,186.28,2.6854]
[1736836150738,7.9675738,186.33,186.28,2.6854]
[1736836151041,2.685,186.32,186.28,2.6854]
[1736836152634,7.9675738,186.31,186.21,0.18886]
[1736836152841,2.6853,186.3,186.26,10.6532738]
[1736836154641,7.9675738,186.29,186.23,7.9675738]
[1736836155135,7.9675738,186.29,186.21,0.18886]
[1736836155338,7.9675738,186.29,186.23,7.9675738]
[1736836155538,2.6857,186.27,186.23,10.6537738]
[1736836155738,2.6857,186.27,186.23,2.6862]
[1736836156138,2.6857,186.27,186.24,7.9675738]
[1736836156337,7.9675738,186.29,186.24,7.9675738]
[1736836156542,2.6856,186.28,186.24,10.6536738]
[1736836157945,2.6856,186.28,186.25,2.686]
[1736836159439,10.6529738,186.29,186.25,2.686]
[1736836160143,2.6856,186.28,186.25,7.9675738]
[1736836160347,2.6856,186.28,186.23,2.6861]
[1736836160535,2.6856,186.28,186.23,10.6536738]
[1736836162942,2.6856,186.28,186.17,36.66110186]
[1736836163147,2.6856,186.28,186.25,7.9675738]
[1736836163847,2.6859,186.26,186.23,7.9675738]
[1736836164248,7.9675738,186.29,186.23,7.9675738]
[1736836164442,5.04096831,186.35,186.23,7.9675738]
[1736836164652,7.9675738,186.3,186.23,10.6538738]
[1736836165647,2.6857,186.28,186.23,10.6538738]
[1736836167046,2.6857,186.27,186.23,10.6538738]
[1736836170643,2.6859,186.26,186.21,2.6864]
[1736836170843,2.6859,186.26,186.22,7.9675738]
[1736836174057,2.6859,186.26,186.22,10.6539738]
[1736836178058,7.9675738,186.28,186.17,36.66110186]
[1736836178258,2.6861,186.24,186.21,7.9675738]
[1736836179149,3.2041,186.29,186.21,7.9675738]
[1736836179352,7.9675738,186.28,186.23,7.9675738]
[1736836180055,2.6858,186.27,186.23,7.9675738]
[1736836183763,7.9675738,186.28,186.17,36.66110186]
[1736836183960,2.686,186.25,186.23,7.9675738]
[1736836186358,7.9675738,186.28,186.23,7.9675738]
[1736836186559,2.686,186.26,186.23,7.9675738]
[1736836188865,2.686,186.25,186.23,7.9675738]
[1736836192766,3.2041,186.29,186.2,2.6866]
[1736836192767,7.9675738,186.26,186.2,2.6866]
[1736836192967,7.9675738,186.26,186.17,22.31527566]
[1736836193175,2.6865,186.22,186.19,7.9675738]
[1736836193668,7.9675738,186.24,186.19,7.9675738]
[1736836193869,2.6863,186.23,186.19,7.9675738]
[1736836194675,2.6863,186.23,186.21,7.9675738]
[1736836195477,2.6864,186.22,186.21,7.9675738]
[1736836196275,2.6864,186.22,186.19,7.9675738]
[1736836196572,2.6867,186.21,186.19,7.9675738]
[1736836196774,2.6867,186.21,186.17,32.96994946]
[1736836196977,7.9675738,186.22,186.17,30.28284946]
[1736836197867,10.6544738,186.2,186.16,2.6873]
[1736836198177,7.9675738,186.18,186.12,7.9675738]
[1736836199472,7.9675738,186.16,186.1,10.6556738]
[1736836199872,5.44,186.19,186.07,2.6886]
[1736836199873,7.9675738,186.14,186.07,2.6886]
[1736836200076,7.9675738,186.14,186.08,7.9675738]
[1736836200378,2.6873,186.17,186.12,7.9675738]
[1736836200874,2.6874,186.16,186.12,7.9675738]
[1736836201273,13.4075738,186.19,186.04,4.9031]
[1736836201274,7.9675738,186.17,186.04,4.9031]
[1736836201478,2.6878,186.13,186.04,4.9031]
[1736836201774,2.6878,186.13,186.09,7.9675738]
[1736836203278,10.6553738,186.13,186.09,7.9675738]
[1736836204576,10.6553738,186.13,186.04,4.9031]
[1736836204783,10.6553738,186.13,186.07,10.6561738]
[1736836205781,10.6553738,186.13,186.07,7.9675738]
[1736836205978,10.6553738,186.13,186.08,2.6884]
[1736836206481,2.6878,186.13,186.09,7.9675738]
[1736836206786,2.6876,186.14,186.11,7.9675738]
[1736836206980,14.9398738,186.2,186.13,7.9675738]
[1736836207181,14.9398738,186.2,186.16,7.9675738]
[1736836207382,2.6872,186.17,186.14,7.9675738]
[1736836208482,2.6874,186.15,186.1,2.6881]
[1736836208672,2.6874,186.15,186.04,4.9031]
[1736836208673,7.9675738,186.16,186.09,7.9675738]
[1736836209077,2.6876,186.14,186.09,10.6557738]
[1736836212884,2.6876,186.14,186.11,7.9675738]
[1736836214083,6.9723,186.2,186.11,7.9675738]
[1736836214285,3.1755,186.21,186.15,7.9675738]
[1736836214690,11.1430738,186.21,186.15,7.9675738]
[1736836214885,2.687,186.19,186.15,7.9675738]
[1736836215282,7.9675738,186.2,186.04,4.9031]
[1736836215488,2.6874,186.16,186.11,7.9675738]
[1736836215687,7.9675738,186.18,186.1,2.6881]
[1736836215986,7.9675738,186.18,186.11,7.9675738]
[1736836216186,7.9675738,186.18,186.1,2.6881]
[1736836216386,7.9675738,186.16,186.11,7.9675738]
[1736836216786,2.6878,186.13,186.09,7.9675738]
[1736836217382,2.6876,186.15,186.1,2.6881]
[1736836217579,2.6876,186.15,186.11,7.9675738]
[1736836220892,2.6873,186.16,186.13,7.9675738]
[1736836221187,2.6873,186.16,186.11,2.6879]
[1736836221188,9.6538738,186.2,186.15,7.9675738]
[1736836222094,2.6871,186.18,186.15,7.9675738]
[1736836224595,2.6869,186.19,186.15,7.9675738]
[1736836225391,10.6545738,186.18,186.13,10.6552738]
[1736836230896,2.6872,186.17,186.13,10.6552738]
[1736836231697,10.6545738,186.18,186.14,2.6875]
[1736836232600,10.6545738,186.18,186.13,7.9675738]
[1736836232794,10.6545738,186.18,186.13,10.6552738]
[1736836234901,10.6545738,186.18,186.13,7.9675738]
[1736836235199,10.6545738,186.18,186.14,2.6875]
[1736836235503,2.687,186.18,186.15,7.9675738]
[1736836236503,2.687,186.18,186.13,2.6876]
[1736836236704,2.687,186.18,186.15,7.9675738]
[1736836238400,2.6867,186.21,186.17,7.9675738]
[1736836240007,2.6867,186.2,186.16,10.6547738]
[1736836240600,7.0659,186.26,186.18,10.6544738]
[1736836240802,7.9675738,186.23,186.18,10.6544738]
[1736836241210,2.6865,186.22,186.18,7.9675738]
[1736836241405,7.9675738,186.23,186.18,7.9675738]
[1736836243212,2.6866,186.21,186.17,2.6871]
[1736836243402,2.6866,186.21,186.17,10.6546738]
[1736836245108,2.6866,186.21,186.17,7.9675738]
[1736836245313,10.6541738,186.21,186.16,2.6873]
[1736836245514,10.6541738,186.21,186.16,10.6548738]
[1736836246715,2.6867,186.2,186.16,10.6548738]
[1736836254119,7.9675738,186.21,186.1,4.8238]
[1736836254319,7.9675738,186.19,186.1,4.8238]
[1736836254515,7.9675738,186.17,186.11,7.9675738]
[1736836254721,2.6879,186.12,186.08,7.9675738]
[1736836254921,2.6879,186.12,186.07,7.9675738]
[1736836256222,2.6879,186.12,186.08,2.6884]
[1736836256422,7.9675738,186.13,186.08,2.6884]
[1736836257523,10.6553738,186.13,186.08,2.6884]
[1736836260426,10.6553738,186.13,186.09,2.6883]
[1736836262026,10.6553738,186.13,186.09,10.6558738]
[1736836262326,2.6878,186.13,186.09,10.6558738]
[1736836262529,4.9615,186.19,186.11,7.9675738]
[1736836262827,4.9615,186.19,186.16,7.9675738]
[1736836263229,2.6871,186.17,186.14,7.9675738]
[1736836263424,12.9290738,186.19,186.12,7.9675738]
[1736836263732,7.9675738,186.17,186.12,7.9675738]
[1736836264027,2.6875,186.15,186.11,2.688]
[1736836264228,2.6875,186.15,186.06,42.12058663]
[1736836264229,7.9675738,186.15,186.09,7.9675738]
[1736836265223,2.6877,186.14,186.09,2.6882]
[1736836267129,2.6877,186.14,186.1,7.9675738]
[1736836269630,7.9675738,186.13,186.07,7.9675738]
[1736836270829,2.6879,186.12,186.07,2.6886]
[1736836271032,5.44,186.17,186.08,7.9675738]
[1736836271332,7.9675738,186.14,186.08,7.9675738]
[1736836271633,7.9675738,186.14,186.08,2.6884]
[1736836271634,2.6877,186.13,186.08,2.6884]
[1736836271843,2.6877,186.13,186.08,10.6559738]
[1736836272031,7.9675738,186.12,186.08,2.6884]
[1736836275940,7.9675738,186.1,186.06,2.6886]
[1736836276139,1.5789,186.11,186.06,7.9675738]
[1736836276438,7.9675738,186.12,186.08,7.9675738]
[1736836276731,1.64,186.19,186.1,7.9675738]
[1736836276936,1.64,186.19,186.15,7.9675738]
[1736836277137,9.6075738,186.19,186.15,7.9675738]
[1736836277437,7.9675738,186.17,186.11,7.9675738]
[1736836277833,2.6878,186.13,186.09,7.9675738]
[1736836278038,7.9675738,186.12,186.07,7.9675738]
[1736836278735,1.64,186.19,186.11,7.9675738]
[1736836278932,1.64,186.19,186.13,7.9675738]
[1736836279133,9.6075738,186.19,186.13,7.9675738]
[1736836280240,2.6873,186.16,186.13,7.9675738]
[1736836281037,2.6875,186.15,186.13,7.9675738]
[1736836281738,2.6875,186.15,186.1,2.688]
[1736836281939,2.6875,186.15,186.12,7.9675738]
[1736836284446,2.6881,186.11,186.04,4.8034]
[1736836284648,7.9675738,186.11,186.05,7.9675738]
[1736836284845,2.6875,186.15,186.1,10.6557738]
[1736836285046,7.9675738,186.16,186.04,4.8034]
[1736836285242,7.9675738,186.14,186.09,7.9675738]
[1736836285447,2.6877,186.13,186.09,7.9675738]
[1736836287343,7.9675738,186.14,186.09,7.9675738]
[1736836287954,7.9675738,186.16,186.11,7.9675738]
[1736836288942,7.9675738,186.16,186.04,4.8034]
[1736836289151,7.9675738,186.12,186.04,4.8034]
[1736836289547,7.9675738,186.12,186.06,7.9675738]
[1736836289745,7.9675738,186.12,186.08,7.9675738]
[1736836290056,10.6554738,186.12,186.08,7.9675738]
[1736836290450,2.6879,186.12,186.08,7.9675738]
[1736836290754,2.6873,186.16,186.1,10.6556738]
[1736836290954,7.9675738,186.18,186.12,7.9675738]
[1736836291459,2.6876,186.15,186.12,7.9675738]
[1736836292046,2.6876,186.14,186.04,4.8034]
[1736836292252,7.9675738,186.14,186.04,4.8034]
[1736836292456,7.9675738,186.14,186.08,7.9675738]
[1736836293255,2.6878,186.13,186.08,10.6559738]
[1736836293658,6.66985376,186.19,186.1,7.9675738]
[1736836293860,7.9675738,186.18,186.12,7.9675738]
[1736836294860,2.6876,186.15,186.12,7.9675738]
[1736836296264,2.6876,186.14,186.12,7.9675738]
[1736836296563,2.6876,186.14,186.1,7.9675738]
[1736836299166,7.9675738,186.16,186.04,4.8034]
[1736836299469,2.6879,186.13,186.09,7.9675738]
[1736836305470,7.12,186.19,186.11,7.9675738]
[1736836305669,15.0875738,186.19,186.13,7.9675738]
[1736836307068,2.6872,186.17,186.13,10.6552738]
[1736836307268,2.6872,186.17,186.13,7.9675738]
[1736836309263,2.687,186.18,186.15,7.9675738]
[1736836309468,78.22594594,186.21,186.15,7.9675738]
[1736836309764,72.76594594,186.21,186.15,7.9675738]
[1736836309963,2.6869,186.19,186.15,7.9675738]
[1736836310571,10.6544738,186.19,186.15,7.9675738]
[1736836310764,7.9675738,186.19,186.06,5.46]
[1736836310964,7.9675738,186.19,186.12,7.9675738]
[1736836312166,2.6873,186.17,186.12,10.6554738]
[1736836315972,2.6869,186.19,186.14,7.9675738]
[1736836316172,1.5999,186.22,186.18,7.9675738]
[1736836316478,7.9675738,186.23,186.18,7.9675738]
[1736836316672,2.6864,186.22,186.18,7.9675738]
[1736836320781,2.6864,186.22,186.17,2.687]
[1736836322282,2.6864,186.22,186.18,7.9675738]
[1736836322583,12.2120738,186.24,186.19,2.6868]
[1736836322785,10.6536738,186.24,186.19,2.6868]
[1736836324586,2.6859,186.26,186.21,2.6865]
[1736836324792,7.9675738,186.28,186.22,7.9675738]
[1736836325283,2.6857,186.27,186.22,10.6539738]
[1736836325482,7.9675738,186.28,186.22,7.9675738]
[1736836325683,7.9675738,186.26,186.2,7.9675738]
[1736836325982,10.6534738,186.26,186.21,2.6866]
[1736836326682,7.9675738,186.26,186.22,7.9675738]
[1736836326887,10.6529738,186.29,186.24,10.6536738]
[1736836327288,10.6529738,186.29,186.24,7.9675738]
[1736836327586,2.6856,186.28,186.24,7.9675738]
[1736836330791,2.6853,186.3,186.24,10.6535738]
[1736836331587,2.6853,186.3,186.26,7.9675738]
[1736836332397,2.6852,186.31,186.28,7.9675738]
[1736836333188,2.6852,186.31,186.26,2.6857]
[1736836333189,10.6527738,186.31,186.26,10.6532738]
[1736836333392,2.6853,186.3,186.26,7.9675738]
[1736836336197,7.9675738,186.33,186.28,7.9675738]
[1736836336494,72.72369593,186.35,186.3,7.9675738]
[1736836339099,2.6848,186.33,186.3,7.9675738]
[1736836340799,2.6853,186.3,186.25,2.686]
[1736836341000,2.6853,186.3,186.28,7.9675738]
[1736836342096,7.9675738,186.34,186.28,7.9675738]
[1736836342402,7.9675738,186.34,186.21,4.901]
[1736836342403,2.685,186.33,186.3,7.9675738]
[1736836342901,2.685,186.32,186.3,7.9675738]
[1736836349205,64.75612213,186.35,186.3,7.9675738]
[1736836349407,9.6080738,186.4,186.33,7.9675738]
[1736836349708,9.6080738,186.4,186.35,7.9675738]
[1736836349896,1.6405,186.4,186.37,7.9675738]
[1736836350101,1.6807,186.41,186.37,7.9675738]
[1736836350304,7.9675738,186.42,186.37,7.9675738]
[1736836350500,2.6839,186.4,186.39,7.9675738]
[1736836350707,9.5439738,186.45,186.39,7.9675738]
[1736836351300,1.5764,186.45,186.41,7.9675738]
[1736836352108,2.6835,186.43,186.41,7.9675738]
[1736836352308,173.10804864,186.49,186.41,7.9675738]
[1736836352508,7.9675738,186.51,186.46,7.9675738]
[1736836352709,2.6826,186.49,186.46,7.9675738]
[1736836357012,7.9675738,186.51,186.46,7.9675738]
[1736836357214,2.6827,186.48,186.46,7.9675738]
[1736836357411,7.9675738,186.51,186.46,7.9675738]
[1736836358313,2.6825,186.5,186.46,7.9675738]
[1736836358512,7.9675738,186.51,186.46,7.9675738]
[1736836360213,2.6828,186.48,186.46,7.9675738]
[1736836360614,2.6828,186.48,186.41,2.6837]
[1736836360814,2.6828,186.48,186.45,7.9675738]
[1736836362916,2.6828,186.48,186.47,7.9675738]
[1736836366324,16.5595738,186.53,186.47,7.9675738]
[1736836366628,2.6824,186.51,186.47,7.9675738]
[1736836366822,16.5595738,186.53,186.47,7.9675738]
[1736836367024,2.6824,186.5,186.47,7.9675738]
[1736836367214,16.5595738,186.53,186.47,7.9675738]
[1736836368613,16.5595738,186.53,186.38,5.65132]
[1736836368824,16.5595738,186.53,186.47,7.9675738]
[1736836369123,2.6827,186.48,186.47,7.9675738]
[1736836372323,2.6831,186.45,186.4,2.6838]
[1736836372524,7.9675738,186.49,186.43,7.9675738]
[1736836372828,2.6832,186.45,186.43,7.9675738]
[1736836373625,8.592,186.53,186.43,7.9675738]
[1736836373828,8.592,186.53,186.45,7.9675738]
[1736836373829,2.6828,186.48,186.45,7.9675738]
[1736836374020,2.6828,186.48,186.47,7.9675738]
[1736836377125,2.6828,186.48,186.43,2.6833]
[1736836377326,2.6829,186.47,186.45,7.9675738]
[1736836379333,2.683,186.46,186.45,7.9675738]
[1736836379735,7.9675738,186.5,186.43,7.9675738]
[1736836379931,2.6833,186.44,186.43,7.9675738]
[1736836382536,2.6833,186.44,186.41,7.9675738]
[1736836387544,7.9675738,186.46,186.41,7.9675738]
[1736836387741,2.6835,186.42,186.41,7.9675738]
[1736836388640,7.9675738,186.46,186.41,7.9675738]
[1736836390339,2.6834,186.44,186.41,7.9675738]
[1736836391944,7.9675738,186.46,186.41,7.9675738]
[1736836392136,2.6835,186.43,186.41,7.9675738]
[1736836393348,7.9675738,186.46,186.41,7.9675738]
[1736836393542,2.6835,186.42,186.41,7.9675738]
[1736836394244,2.6835,186.42,186.39,7.9675738]
[1736836394446,7.9675738,186.44,186.38,0.21132]
[1736836394639,7.9675738,186.42,186.38,0.21132]
[1736836394844,7.9675738,186.4,186.38,0.21132]
[1736836395243,2.684,186.39,186.38,0.21132]
[1736836395448,7.9675738,186.4,186.32,7.9675738]
[1736836395648,7.9675738,186.37,186.3,7.9675738]
[1736836395943,2.685,186.32,186.3,7.9675738]
[1736836397049,2.6848,186.34,186.3,7.9675738]
[1736836397240,9.5640738,186.37,186.3,7.9675738]
[1736836398248,2.6848,186.33,186.3,7.9675738]
[1736836398447,7.9675738,186.35,186.3,7.9675738]
[1736836398642,2.6853,186.3,186.28,7.9675738]
[1736836399643,2.6854,186.29,186.28,7.9675738]
[1736836421771,2.6858,186.26,186.25,7.9675738]
[1736836426363,2.6856,186.28,186.25,7.9675738]
[1736836426572,5.44,186.33,186.27,7.9675738]
[1736836426866,1.558,186.36,186.31,7.9675738]
[1736836427072,6.998,186.36,186.33,7.9675738]
[1736836427571,2.6847,186.34,186.33,7.9675738]
[1736836428572,2.685,186.32,186.31,7.9675738]
[1736836429873,2.685,186.32,186.26,2.6858]
[1736836430071,2.685,186.32,186.31,7.9675738]
[1736836431772,1.5965,186.37,186.31,7.9675738]
[1736836431967,156.66777126,186.4,186.36,7.9675738]
[1736836432174,148.70019746,186.4,186.36,7.9675738]
[1736836432369,2.6842,186.38,186.36,7.9675738]
[1736836435273,2.6838,186.4,186.36,7.9675738]
[1736836435479,2.6838,186.4,186.38,7.9675738]
[1736836439079,2.684,186.39,186.38,7.9675738]
[1736836439280,64.73521014,186.41,186.36,7.9675738]
[1736836440783,7.9675738,186.4,186.36,7.9675738]
[1736836441581,2.6842,186.38,186.36,7.9675738]
[1736836443184,2.6843,186.37,186.36,7.9675738]
[1736836443584,7.9675738,186.4,186.34,7.9675738]
[1736836443782,7.9675738,186.38,186.34,7.9675738]
[1736836443982,7.9675738,186.38,186.28,1.6488]
[1736836443983,7.9675738,186.38,186.32,7.9675738]
[1736836444180,7.9675738,186.34,186.28,7.9675738]
[1736836444392,7.9675738,186.34,186.3,7.9675738]
[1736836445384,7.9675738,186.36,186.3,7.9675738]
[1736836445683,13.4075738,186.38,186.32,7.9675738]
[1736836446178,13.4075738,186.38,186.34,7.9675738]
[1736836446386,13.4075738,186.38,186.36,7.9675738]
[1736836446387,5.44,186.38,186.36,7.9675738]
[1736836446582,64.73521014,186.41,186.36,7.9675738]
[1736836447083,2.684,186.4,186.36,7.9675738]
[1736836448083,2.684,186.39,186.36,7.9675738]
[1736836459594,2.6839,186.4,186.36,7.9675738]
[1736836460487,64.73521014,186.41,186.36,7.9675738]
[1736836460488,2.6836,186.42,186.38,7.9675738]
[1736836460898,7.9675738,186.43,186.38,7.9675738]
[1736836461998,2.6837,186.41,186.38,7.9675738]
[1736836463591,2.684,186.39,186.36,7.9675738]
[1736836464998,2.6839,186.4,186.36,7.9675738]
[1736836469096,7.9675738,186.43,186.36,7.9675738]
[1736836469301,7.9675738,186.43,186.36,10.6519738]
[1736836469704,7.9675738,186.43,186.28,1.6592]
[1736836470002,7.9675738,186.43,186.37,7.9675738]
[1736836470700,2.6839,186.4,186.37,7.9675738]
[1736836478009,7.9675738,186.43,186.37,7.9675738]
[1736836478215,2.6837,186.41,186.37,7.9675738]
[1736836478815,2.6839,186.4,186.37,7.9675738]
[1736836483418,2.6837,186.42,186.39,7.9675738]
[1736836486623,2.6837,186.42,186.37,7.9675738]
[1736836492120,7.9675738,186.43,186.37,7.9675738]
[1736836492324,2.6839,186.4,186.37,7.9675738]
[1736836492926,2.6839,186.4,186.35,2.6845]
[1736836493126,2.6839,186.4,186.36,7.9675738]
[1736836493528,2.684,186.39,186.36,7.9675738]
[1736836494129,2.6841,186.38,186.36,7.9675738]
[1736836501936,7.9675738,186.39,186.29,1.6557]
[1736836502232,7.9675738,186.37,186.32,7.9675738]
[1736836502427,2.6842,186.38,186.34,7.9675738]
[1736836504036,2.6842,186.38,186.36,7.9675738]
[1736836504233,2.6838,186.41,186.36,7.9675738]
[1736836504434,2.6838,186.41,186.38,7.9675738]
[1736836505835,2.6835,186.43,186.4,7.9675738]
[1736836506138,5.04233977,186.47,186.42,7.9675738]
[1736836506328,213.41083714,186.48,186.45,7.9675738]
[1736836506639,64.71063968,186.48,186.45,7.9675738]
[1736836506839,2.6828,186.47,186.45,7.9675738]
[1736836507335,64.71063968,186.48,186.45,7.9675738]
[1736836508038,64.71063968,186.48,186.47,7.9675738]
[1736836508239,148.70019746,186.54,186.47,7.9675738]
[1736836508441,148.70019746,186.54,186.49,7.9675738]
[1736836508737,5.03575132,186.53,186.51,7.9675738]
[1736836508937,7.71785132,186.53,186.5,7.9675738]
[1736836509340,2.6821,186.53,186.5,7.9675738]
[1736836510445,2.6823,186.51,186.48,7.9675738]
[1736836511145,7.0759,186.56,186.5,7.9675738]
[1736836511347,2.682,186.53,186.5,7.9675738]
[1736836512045,2.6821,186.52,186.5,7.9675738]
[1736836512345,2.6821,186.52,186.48,7.9675738]
[1736836513845,2.6821,186.52,186.5,7.9675738]
[1736836514348,219.55242785,186.62,186.5,7.9675738]
[1736836514349,5.44,186.58,186.5,7.9675738]
[1736836514543,5.44,186.58,186.53,7.9675738]
[1736836515139,2.6816,186.56,186.53,7.9675738]
[1736836516148,2.6812,186.58,186.55,7.9675738]
[1736836516751,2.6812,186.58,186.57,7.9675738]
[1736836517046,5.44,186.61,186.55,7.9675738]
[1736836517246,2.6814,186.57,186.53,7.9675738]
[1736836517445,7.9675738,186.6,186.53,7.9675738]
[1736836517644,2.6815,186.56,186.53,7.9675738]
[1736836521653,2.6815,186.56,186.55,7.9675738]
[1736836529952,8.8051,186.62,186.55,7.9675738]
[1736836530156,8.8051,186.62,186.58,7.9675738]
[1736836530658,2.6811,186.59,186.58,7.9675738]
[1736836533857,13.4075738,186.63,186.58,7.9675738]
[1736836534056,13.4075738,186.65,186.6,7.9675738]
[1736836534358,5.44,186.65,186.6,7.9675738]
[1736836535259,2.6809,186.61,186.6,7.9675738]
[1736836537465,2.6811,186.59,186.53,4.2114]
[1736836537657,2.6811,186.59,186.58,7.9675738]
[1736836539065,2.6806,186.63,186.58,7.9675738]
[1736836539364,7.9675738,186.64,186.58,7.9675738]
[1736836539558,13.4075738,186.65,186.6,7.9675738]
[1736836539959,7.9675738,186.65,186.6,7.9675738]
[1736836540954,7.0824,186.67,186.62,7.9675738]
[1736836540955,1.6424,186.67,186.62,7.9675738]
[1736836541163,15.0499738,186.67,186.62,7.9675738]
[1736836541665,7.9675738,186.67,186.62,7.9675738]
[1736836542160,2.6805,186.63,186.62,7.9675738]
[1736836542760,2.6804,186.65,186.62,7.9675738]
[1736836542963,2.6804,186.65,186.64,7.9675738]
[1736836545965,156.66777126,186.71,186.64,7.9675738]
[1736836546167,0.93228717,186.7,186.67,7.9675738]
[1736836546557,156.66777126,186.71,186.67,7.9675738]
[1736836547165,2.6799,186.68,186.67,7.9675738]
[1736836548163,2.68,186.67,186.65,7.9675738]
[1736836560970,2.6798,186.69,186.65,7.9675738]
[1736836562571,7.9675738,186.7,186.63,2.6805]
[1736836562772,2.6798,186.68,186.65,7.9675738]
[1736836563367,2.6797,186.69,186.65,7.9675738]